bitfinex/quotes_BTCUSD_20251209
["timestamp","ask_amount","ask_price","bid_price","bid_amount"]
[1765297879604,0.00161287,93617.0,93616.0,0.004]
[1765297879938,0.02201786,93607.0,93605.0,0.01068319]
[1765297880092,0.01068319,93605.0,93602.0,0.00011797]
[1765297880344,0.31433073,93603.0,93602.0,0.00011797]
[1765297881729,0.00999456,93578.0,93573.0,0.21373519]
[1765297881931,0.00011797,93578.0,93575.0,0.01068661]
[1765297882129,0.00011797,93578.0,93577.0,0.21372773]
[1765297882937,0.00011797,93578.0,93575.0,0.22441891]
[1765297882938,0.02201786,93576.0,93575.0,0.22441891]
[1765297883137,0.00999456,93577.0,93576.0,0.21373001]
[1765297883346,0.00211797,93578.0,93576.0,0.21373001]
[1765297883552,0.00211797,93578.0,93572.0,0.22442556]
[1765297883553,0.00011797,93578.0,93577.0,0.003]
[1765297883750,0.01068764,93566.0,93563.0,0.03708345]
[1765297883914,0.02201786,93562.0,93561.0,0.03708345]
[1765297884141,0.02201786,93562.0,93546.0,0.0742806]
[1765297884142,0.2907,93572.0,93569.0,0.0106873]
[1765297884345,0.01068421,93596.0,93577.0,0.21372773]
[1765297884548,0.0106841,93597.0,93577.0,0.25074924]
[1765297884861,0.01068501,93589.0,93577.0,0.21772773]
[1765297885076,0.03270287,93589.0,93577.0,0.21772773]
[1765297885274,0.01068604,93580.0,93577.0,0.04102949]
[1765297885497,0.21372036,93581.0,93577.0,0.004]
[1765297885697,0.02213583,93578.0,93577.0,0.004]
[1765297886065,0.01068661,93575.0,93570.0,0.04771667]
[1765297886244,0.003,93572.0,93569.0,0.04771679]
[1765297886403,0.00011797,93578.0,93575.0,0.22441683]
[1765297886603,0.00011797,93578.0,93571.0,0.01068707]
[1765297886918,0.01068661,93575.0,93571.0,0.01068707]
[1765297887120,0.01068672,93574.0,93571.0,0.01068707]
[1765297887321,0.2244237,93573.0,93570.0,0.001]
[1765297887676,0.02201786,93570.0,93569.0,0.03702949]
[1765297887825,0.02201786,93570.0,93565.0,0.01068775]
[1765297887826,0.01998912,93570.0,93568.0,0.03702949]
[1765297888044,0.02160199,93570.0,93568.0,0.03702949]
[1765297888247,0.02201786,93568.0,93567.0,0.03702949]
[1765297888412,0.00161287,93570.0,93568.0,0.21374829]
[1765297888413,0.02201786,93569.0,93568.0,0.21374829]
[1765297888619,0.2907,93574.0,93573.0,0.21373686]
[1765297888845,0.00111797,93578.0,93576.0,0.21373001]
[1765297889050,0.00011797,93578.0,93576.0,0.21373001]
[1765297889245,0.00011797,93578.0,93576.0,0.2507595]
[1765297889450,0.00011797,93578.0,93577.0,0.03702949]
[1765297889666,0.00011797,93578.0,93576.0,0.26944444]
[1765297889874,0.00011797,93578.0,93577.0,0.021596]
[1765297890090,0.00011797,93578.0,93576.0,0.21473001]
[1765297890295,0.00011797,93578.0,93577.0,0.35862829]
[1765297890518,0.00011797,93578.0,93576.0,0.21473001]
[1765297890720,0.00011797,93578.0,93577.0,0.05655048]
[1765297890924,0.00011797,93578.0,93577.0,0.00107136]
[1765297891132,0.00011797,93578.0,93576.0,0.21373001]
[1765297891341,0.00011797,93578.0,93577.0,0.21372773]
[1765297891553,0.02213583,93578.0,93577.0,0.21372773]
[1765297891814,0.0237487,93578.0,93577.0,0.21372773]
[1765297892020,0.01068638,93577.0,93574.0,0.03700218]
[1765297892244,0.01068638,93577.0,93569.0,0.03700218]
[1765297892245,0.01068695,93572.0,93569.0,0.03700218]
[1765297892447,0.00999456,93576.0,93573.0,0.01068684]
[1765297892618,0.02201786,93573.0,93570.0,0.22443039]
[1765297892839,0.02201786,93571.0,93570.0,0.01068718]
[1765297893047,0.02201786,93571.0,93570.0,0.22442924]
[1765297893253,0.02201786,93575.0,93574.0,0.22442094]
[1765297893704,0.00161287,93577.0,93576.0,0.21373001]
[1765297893917,0.01068672,93574.0,93570.0,0.01068718]
[1765297894192,0.0106865,93576.0,93573.0,0.01068684]
[1765297894399,0.01068672,93574.0,93570.0,0.01068718]
[1765297894568,0.01068672,93574.0,93570.0,0.01368718]
[1765297894782,0.01068661,93575.0,93570.0,0.01368718]
[1765297894986,0.01068661,93575.0,93572.0,0.01068695]
[1765297895320,0.00161287,93576.0,93574.0,0.21373285]
[1765297895591,0.00161287,93576.0,93574.0,0.21373299]
[1765297895748,0.02201786,93575.0,93573.0,0.2264225]
[1765297895907,0.02201786,93575.0,93573.0,0.2244225]
[1765297896108,0.02201786,93575.0,93572.0,0.002]
[1765297896311,0.23575371,93574.0,93572.0,0.002]
[1765297896920,0.02201786,93574.0,93573.0,0.004]
[1765297897800,0.12871355,93574.0,93573.0,0.006]
[1765297898214,0.0106873,93569.0,93563.0,0.04769016]
[1765297898418,0.0106873,93569.0,93565.0,0.22444217]
[1765297898624,0.01068752,93567.0,93564.0,0.03700218]
[1765297898831,0.2137553,93565.0,93563.0,0.03700218]
[1765297899040,0.21375742,93564.0,93562.0,0.03700218]
[1765297899269,0.21375742,93564.0,93556.0,0.21377399]
[1765297899270,0.3781059,93563.0,93550.0,0.05547912]
[1765297899481,0.2907,93540.0,93534.0,0.05547912]
[1765297899682,0.2907,93540.0,93510.0,0.60648068]
[1765297899683,0.2907,93540.0,93530.0,0.89459458]
[1765297899831,0.2907,93540.0,93539.0,0.05559219]
[1765297900041,0.01068901,93554.0,93542.0,0.01069038]
[1765297900214,0.21380414,93544.0,93539.0,0.01069072]
[1765297900401,0.01068981,93547.0,93543.0,0.01069027]
[1765297900605,0.21381025,93541.0,93537.0,0.01069095]
[1765297900800,0.01068992,93546.0,93543.0,0.01069027]
[1765297901146,0.00011791,93547.0,93545.0,0.21379913]
[1765297901453,0.00011791,93547.0,93544.0,0.01069015]
[1765297901657,0.00011791,93547.0,93546.0,0.21379855]
[1765297902879,0.00011791,93547.0,93546.0,0.21479855]
[1765297903090,0.00011791,93547.0,93546.0,0.21379855]
[1765297903789,0.00011791,93547.0,93546.0,0.21479855]
[1765297904424,0.00011791,93547.0,93546.0,0.004]
[1765297904425,0.02374864,93547.0,93546.0,0.004]
[1765297904633,0.31444864,93547.0,93546.0,0.003]
[1765297905448,0.31444864,93547.0,93546.0,0.004]
[1765297905654,0.31444864,93547.0,93546.0,0.003]
[1765297906512,0.02201786,93538.0,93537.0,0.01069095]
[1765297906841,0.02201786,93538.0,93537.0,0.22450881]
[1765297907276,0.02201786,93538.0,93534.0,0.01069129]
[1765297907438,0.02201786,93538.0,93535.0,0.21382366]
[1765297907844,0.00999456,93542.0,93535.0,0.01069118]
[1765297908047,0.00999456,93542.0,93540.0,0.21381109]
[1765297908246,0.02201786,93538.0,93537.0,0.002]
[1765297908624,0.01069187,93529.0,93526.0,0.01069221]
[1765297908776,0.01069187,93529.0,93519.0,0.00302367]
[1765297908777,0.21385799,93520.0,93519.0,0.00302367]
[1765297908970,0.22385255,93520.0,93519.0,0.00302367]
[1765297909541,0.51455255,93520.0,93519.0,0.00302367]
[1765297909897,0.30069456,93520.0,93519.0,0.00302367]
[1765297910128,0.2907,93520.0,93519.0,0.00302367]
[1765297910326,0.02068654,93528.0,93524.0,0.21384719]
[1765297910654,0.01069221,93526.0,93519.0,0.00302367]
[1765297910822,0.02201786,93520.0,93519.0,0.00302367]
[1765297911040,0.31271786,93520.0,93519.0,0.00302367]
[1765297912206,0.31271786,93520.0,93519.0,0.00502367]
[1765297913593,0.31271786,93520.0,93519.0,0.00485367]
[1765297915215,0.02201786,93520.0,93519.0,0.00485367]
[1765297916220,0.01069164,93531.0,93526.0,0.01069221]
[1765297916427,0.2907,93528.0,93526.0,0.01069221]
[1765297916627,0.02201786,93526.0,93525.0,0.01069232]
[1765297916876,0.02201786,93524.0,93522.0,0.01069267]
[1765297917093,0.02201786,93524.0,93522.0,0.22454548]
[1765297917295,0.02201786,93520.0,93514.0,0.01069358]
[1765297917635,0.02201786,93520.0,93500.0,1.0]
[1765297917636,0.02201786,93520.0,93519.0,0.00285367]
[1765297918092,0.31271786,93520.0,93519.0,0.00285367]
[1765297919141,0.31271786,93520.0,93519.0,0.00485367]
[1765297920260,0.31271786,93520.0,93519.0,0.00285367]
[1765297920476,0.00999456,93523.0,93521.0,0.01069278]
[1765297920706,0.003,93520.0,93519.0,0.22740232]
[1765297921529,0.002,93520.0,93519.0,0.22740232]
[1765297921744,0.01069095,93537.0,93532.0,0.22452127]
[1765297922018,0.00999456,93538.0,93535.0,0.2138237]
[1765297922202,0.02201786,93540.0,93539.0,0.01069072]
[1765297922351,0.02201786,93541.0,93538.0,0.01069084]
[1765297922822,0.03270835,93541.0,93537.0,0.01069095]
[1765297923018,0.02134676,93543.0,93542.0,0.2138077]
[1765297923257,0.00011791,93547.0,93546.0,0.21379855]
[1765297923666,0.0106865,93576.0,93567.0,0.01068752]
[1765297923879,0.01068707,93571.0,93567.0,0.01068752]
[1765297924086,0.00011808,93576.0,93567.0,0.01068752]
[1765297924087,0.00011808,93576.0,93573.0,0.01068684]
[1765297924293,0.02146484,93576.0,93573.0,0.22442217]
[1765297924502,0.00011808,93576.0,93573.0,0.22442217]
[1765297925044,0.00011808,93576.0,93573.0,0.01068684]
[1765297925304,0.00011808,93576.0,93573.0,0.22442247]
[1765297925911,0.00211808,93576.0,93573.0,0.22442247]
[1765297926606,0.00011808,93576.0,93573.0,0.22442247]
[1765297927214,0.00211808,93576.0,93573.0,0.22442247]
[1765297927453,0.00211808,93576.0,93575.0,0.10669569]
[1765297927665,0.00011808,93576.0,93575.0,0.12829169]
[1765297927978,0.00011808,93576.0,93575.0,0.10669569]
[1765297928540,0.00011808,93576.0,93575.0,0.39739569]
[1765297928745,0.00011808,93576.0,93575.0,0.42099169]
[1765297928982,0.00011808,93576.0,93575.0,0.40239569]
[1765297929177,0.00011808,93576.0,93575.0,0.40039569]
[1765297929570,0.00011808,93576.0,93575.0,0.40239569]
[1765297930200,0.00011808,93576.0,93575.0,0.42099169]
[1765297930604,0.00011808,93576.0,93575.0,0.42399169]
[1765297930864,0.00022605,93618.0,93617.0,0.21363641]
[1765297931000,0.00031441,93618.0,93617.0,0.11363641]
[1765297931765,0.02857991,93654.0,93625.0,0.0106809]
[1765297931924,0.13544569,93666.0,93611.0,0.01712]
[1765297931925,0.02201786,93630.0,93619.0,0.01068159]
[1765297932134,0.00161287,93630.0,93624.0,0.01068102]
[1765297932461,0.00161287,93630.0,93627.0,0.22429222]
[1765297932662,0.2907,93645.0,93639.0,0.01067931]
[1765297932986,0.00161287,93645.0,93644.0,0.21357481]
[1765297933205,0.02857991,93666.0,93644.0,0.21357481]
[1765297933206,0.01067646,93664.0,93649.0,0.21356341]
[1765297933371,0.0002,93680.0,93649.0,0.21356341]
[1765297933597,0.01067589,93669.0,93649.0,0.21356341]
[1765297933804,0.0002,93680.0,93649.0,0.21356341]
[1765297933967,0.21349661,93679.0,93649.0,0.21356341]
[1765297934182,0.0002,93680.0,93649.0,0.21356341]
[1765297934183,0.21350483,93675.0,93649.0,0.21356341]
[1765297934381,0.11737078,93676.0,93649.0,0.21356341]
[1765297934580,0.01108833,93650.0,93649.0,0.21356341]
[1765297934761,0.00508833,93650.0,93649.0,0.21356341]
[1765297934964,0.00508833,93650.0,93635.0,0.01067976]
[1765297935168,0.21358985,93638.0,93618.0,0.00027914]
[1765297935383,0.01067999,93633.0,93626.0,0.22429525]
[1765297935578,0.00161287,93637.0,93634.0,0.01067988]
[1765297935873,0.00161287,93637.0,93634.0,0.22427662]
[1765297936044,0.00161287,93637.0,93626.0,0.01068079]
[1765297936045,0.21360511,93631.0,93626.0,0.01068079]
[1765297936201,0.21360511,93631.0,93600.0,0.00099999]
[1765297936202,0.0106809,93625.0,93621.0,0.01068136]
[1765297936410,0.00161287,93637.0,93621.0,0.01068136]
[1765297936613,0.01067965,93636.0,93624.0,0.01068102]
[1765297936819,0.00161287,93637.0,93618.0,0.00027914]
[1765297936820,0.0106809,93625.0,93618.0,0.00027914]
[1765297937016,0.01068136,93621.0,93618.0,0.00027914]
[1765297937251,0.0106809,93625.0,93619.0,0.01068159]
[1765297937459,0.21361359,93627.0,93619.0,0.01068159]
[1765297937460,0.01068067,93627.0,93619.0,0.01068159]
[1765297937803,0.00561287,93637.0,93635.0,0.21359534]
[1765297938006,0.005,93650.0,93647.0,0.01067839]
[1765297938211,0.00511804,93650.0,93648.0,0.21356569]
[1765297938573,0.00511804,93650.0,93647.0,0.01067839]
[1765297938757,0.00511804,93650.0,93647.0,0.22424636]
[1765297938962,0.00511804,93650.0,93649.0,0.21356341]
[1765297939535,0.00511804,93650.0,93649.0,0.22356155]
[1765297940144,0.00611804,93650.0,93649.0,0.22356155]
[1765297940353,0.00511804,93650.0,93649.0,0.22356155]
[1765297940556,0.00511804,93650.0,93649.0,0.22556155]
[1765297940951,0.00511804,93650.0,93649.0,0.21556341]
[1765297941161,0.00511804,93650.0,93649.0,0.23268341]
[1765297941462,0.00511804,93650.0,93649.0,0.005]
[1765297941909,0.00511804,93650.0,93649.0,0.002]
[1765297942101,0.00511804,93650.0,93649.0,0.023596]
[1765297942332,0.00511804,93650.0,93649.0,0.022596]
[1765297942537,0.00511804,93650.0,93649.0,0.12929169]
[1765297943033,0.00511804,93650.0,93649.0,0.48251468]
[1765297943236,1e-08,93650.0,93649.0,0.48451468]
[1765297943437,1e-08,93650.0,93649.0,0.48351468]
[1765297943766,0.0002,93680.0,93649.0,0.48351468]
[1765297943767,0.0002,93680.0,93669.0,0.22351595]
[1765297943918,0.00059339,93670.0,93669.0,0.24063595]
[1765297944650,0.00059339,93670.0,93669.0,0.21351781]
[1765297944844,0.00059339,93670.0,93662.0,0.01067668]
[1765297944997,0.00059339,93670.0,93655.0,0.01067748]
[1765297944998,0.01067646,93664.0,93655.0,0.01067748]
[1765297945203,0.01067646,93664.0,93626.0,0.10669569]
[1765297945204,0.00161287,93664.0,93663.0,0.21353149]
[1765297945433,0.00161287,93664.0,93661.0,0.0106768]
[1765297945435,0.00059339,93670.0,93669.0,0.21351781]
[1765297945636,0.00220626,93670.0,93666.0,0.01067623]
[1765297945839,0.00220626,93670.0,93668.0,0.21351823]
[1765297946270,0.00220626,93670.0,93667.0,0.22419693]
[1765297946485,0.00220626,93670.0,93668.0,0.21351832]
[1765297946793,0.00220626,93670.0,93585.0,2.67135673]
[1765297946794,0.00099999,93660.0,93585.0,2.67135673]
[1765297946963,0.01067828,93648.0,93642.0,0.01067896]
[1765297947207,0.00161287,93648.0,93645.0,0.01067862]
[1765297947413,0.2907,93660.0,93657.0,0.01067725]
[1765297947617,0.2907,93660.0,93649.0,0.01067817]
[1765297947618,0.01067862,93645.0,93605.0,1.17500457]
[1765297947862,0.01167918,93640.0,93635.0,0.01067976]
[1765297948084,0.00261286,93640.0,93635.0,0.01067976]
[1765297948283,0.00261286,93640.0,93627.0,0.00607396]
[1765297948284,0.00261286,93640.0,93636.0,0.01067965]
[1765297948499,0.00261286,93640.0,93633.0,0.01067999]
[1765297948738,0.00261286,93640.0,93632.0,0.0106801]
[1765297948739,0.01067953,93637.0,93632.0,0.0106801]
[1765297949172,0.00461287,93640.0,93638.0,0.2135865]
[1765297949394,0.00461287,93640.0,93637.0,0.01067953]
[1765297949620,0.00161287,93640.0,93638.0,0.21358624]
[1765297949829,0.00561287,93640.0,93638.0,0.21358624]
[1765297950040,0.00161287,93640.0,93638.0,0.21358624]
[1765297950477,0.00161287,93640.0,93634.0,0.01067988]
[1765297950478,0.21359901,93634.0,93632.0,0.00011804]
[1765297950681,0.316893,93633.0,93632.0,0.00011804]
[1765297950888,0.33891086,93633.0,93632.0,0.00011804]
[1765297951065,0.31271786,93633.0,93632.0,0.00011804]
[1765297951296,0.01067953,93637.0,93632.0,0.01079814]
[1765297951445,0.21359829,93634.0,93632.0,0.00011804]
[1765297951810,0.01067976,93635.0,93632.0,0.00011804]
[1765297952281,0.23561776,93633.0,93632.0,0.00011804]
[1765297953274,0.23861776,93633.0,93632.0,0.00011804]
[1765297953818,0.52631776,93633.0,93632.0,0.00011804]
[1765297953959,0.52731776,93633.0,93632.0,0.00011804]
[1765297954160,0.5052999,93633.0,93632.0,0.00011804]
[1765297954400,0.56682289,93633.0,93632.0,0.00011804]
[1765297954609,0.57681745,93633.0,93632.0,0.00011804]
[1765297954806,0.57781745,93633.0,93632.0,0.00011804]
[1765297955009,0.5062999,93633.0,93632.0,0.00011804]
[1765297955206,0.2917,93633.0,93632.0,0.00011804]
[1765297955409,0.30169456,93633.0,93632.0,0.00011804]
[1765297955648,0.30369456,93633.0,93632.0,0.00011804]
[1765297955858,0.30169456,93633.0,93632.0,0.00011804]
[1765297956148,0.30069456,93633.0,93632.0,0.00011804]
[1765297956299,0.30169456,93633.0,93632.0,0.00011804]
[1765297956606,0.40739025,93633.0,93632.0,0.00011804]
[1765297956774,0.40939025,93633.0,93632.0,0.00011804]
[1765297957600,0.30269456,93633.0,93632.0,0.00011804]
[1765297957892,0.51989787,93633.0,93632.0,0.00011804]
[1765297958096,0.30069456,93633.0,93632.0,0.00011804]
[1765297958287,0.30169456,93633.0,93632.0,0.00011804]
[1765297958616,0.30169456,93633.0,93619.0,0.21363012]
[1765297958617,0.01068079,93626.0,93619.0,0.21363012]
[1765297958925,0.01068102,93624.0,93620.0,0.01068147]
[1765297959348,0.01068067,93627.0,93622.0,0.01068125]
[1765297959547,0.2907,93627.0,93626.0,0.21361587]
[1765297959759,0.1,93634.0,93629.0,0.01068045]
[1765297960018,0.1,93634.0,93631.0,0.01068022]
[1765297960218,0.1,93634.0,93632.0,0.21860947]
[1765297960426,0.21619835,93640.0,93635.0,0.01067976]
[1765297960427,0.00161287,93640.0,93635.0,0.01067976]
[1765297960635,0.01229206,93640.0,93633.0,0.01067999]
[1765297960876,0.00161287,93640.0,93635.0,0.01067976]
[1765297961098,0.21359188,93637.0,93631.0,0.21360257]
[1765297961282,0.01067953,93637.0,93632.0,0.22428054]
[1765297961485,0.01067965,93636.0,93632.0,0.0106801]
[1765297961690,0.21359265,93637.0,93632.0,0.0106801]
[1765297961691,0.00461287,93640.0,93638.0,0.21358692]
[1765297961855,0.00461287,93640.0,93635.0,0.01067976]
[1765297961856,0.22887693,93640.0,93635.0,0.01067976]
[1765297962056,0.01067942,93638.0,93635.0,0.01067976]
[1765297962311,0.00161287,93640.0,93638.0,0.21358706]
[1765297962582,0.00161287,93640.0,93637.0,0.22426926]
[1765297962859,0.01067931,93639.0,93635.0,0.22427355]
[1765297963044,0.01067965,93636.0,93628.0,0.01068056]
[1765297963193,0.01068033,93630.0,93626.0,0.01068079]
[1765297963373,0.21360294,93632.0,93629.0,0.22428738]
[1765297963579,0.01068033,93630.0,93624.0,0.01068102]
[1765297963818,0.01068102,93624.0,93621.0,0.02755754]
[1765297963994,0.03369818,93630.0,93627.0,0.01068067]
[1765297964194,0.02301785,93630.0,93624.0,0.01068102]
[1765297964399,0.02301785,93630.0,93626.0,0.01068079]
[1765297964608,0.00099999,93630.0,93627.0,0.22429395]
[1765297964786,0.01068125,93622.0,93619.0,0.02755754]
[1765297964986,0.01068125,93622.0,93613.0,0.01068227]
[1765297964987,0.01068136,93621.0,93618.0,0.02755754]
[1765297965191,0.01068136,93621.0,93611.0,0.11312488]
[1765297965192,0.2136376,93617.0,93615.0,0.02755754]
[1765297965395,0.2136376,93617.0,93611.0,0.10669569]
[1765297965396,0.2356634,93613.0,93611.0,0.10669569]
[1765297965916,0.22432541,93614.0,93611.0,0.10669569]
[1765297966239,0.21364782,93612.0,93611.0,0.10669569]
[1765297966595,0.21364782,93612.0,93611.0,0.10769569]
[1765297966828,0.22431583,93618.0,93611.0,0.10769569]
[1765297966829,0.01068102,93624.0,93617.0,0.2243175]
[1765297966998,0.01068102,93624.0,93613.0,0.01068227]
[1765297966999,0.21364288,93615.0,93613.0,0.02755754]
[1765297967187,0.01068193,93616.0,93612.0,0.2243289]
[1765297967437,0.21361904,93625.0,93614.0,0.01068216]
[1765297967810,0.21361904,93625.0,93617.0,0.01068182]
[1765297967811,0.0106809,93625.0,93617.0,0.01068182]
[1765297968014,0.0106809,93625.0,93611.0,0.10769569]
[1765297968015,0.21364015,93616.0,93611.0,0.10769569]
[1765297968289,0.00999456,93612.0,93611.0,0.10769569]
[1765297968536,0.30069456,93612.0,93611.0,0.10769569]
[1765297968688,0.2907,93612.0,93611.0,0.10669569]
[1765297968867,0.31271786,93612.0,93611.0,0.10669569]
[1765297969070,0.37524085,93612.0,93611.0,0.10669569]
[1765297969469,0.21367293,93601.0,93600.0,1.0]
[1765297969696,0.23569079,93601.0,93600.0,1.00008836]
[1765297970609,0.23569079,93601.0,93600.0,1.00108836]
[1765297971184,0.21367293,93601.0,93600.0,1.00108836]
[1765297971389,0.23569079,93601.0,93600.0,1.00159711]
[1765297971804,0.23569079,93601.0,93600.0,1.00059711]
[1765297972040,0.23569079,93601.0,93600.0,1.00159711]
[1765297972261,0.01068273,93609.0,93603.0,0.22435098]
[1765297972464,0.01068273,93609.0,93600.0,1.01228087]
[1765297972465,0.0106817,93618.0,93613.0,0.01068227]
[1765297972776,0.02201786,93616.0,93611.0,0.0106825]
[1765297973003,0.2907,93619.0,93616.0,0.01068193]
[1765297973139,0.00099999,93620.0,93608.0,0.01068284]
[1765297973346,0.01068204,93615.0,93608.0,0.21365597]
[1765297973585,0.01068204,93615.0,93610.0,0.01068261]
[1765297973586,0.22432304,93615.0,93610.0,0.01068261]
[1765297973817,0.01068227,93613.0,93610.0,0.01068261]
[1765297973963,0.30138204,93615.0,93611.0,0.0106825]
[1765297974166,0.5150239,93615.0,93611.0,0.2243316]
[1765297974363,0.01068261,93610.0,93606.0,0.01068307]
[1765297974588,0.01068216,93614.0,93610.0,0.01068261]
[1765297974800,0.002,93615.0,93613.0,0.21364445]
[1765297975190,0.00099999,93620.0,93618.0,0.21363242]
[1765297975374,0.00099999,93620.0,93617.0,0.01068182]
[1765297975375,0.00099999,93620.0,93617.0,0.2243167]
[1765297975579,0.00099999,93620.0,93617.0,0.22431637]
[1765297975782,0.0106817,93618.0,93614.0,0.22432496]
[1765297975988,0.002,93620.0,93618.0,0.21363288]
[1765297976237,0.21363413,93619.0,93613.0,0.22432781]
[1765297976440,0.01068022,93631.0,93627.0,0.01068067]
[1765297976653,0.01067999,93633.0,93627.0,0.01068067]
[1765297976654,0.2907,93629.0,93627.0,0.21361141]
[1765297976865,0.0106801,93632.0,93627.0,0.22429325]
[1765297977069,0.21359605,93635.0,93623.0,0.01068113]
[1765297977070,0.01068033,93630.0,93623.0,0.01068113]
[1765297977276,0.01068033,93630.0,93626.0,0.01068079]
[1765297977277,0.2907,93629.0,93626.0,0.01068079]
[1765297977489,0.2907,93629.0,93623.0,0.22430309]
[1765297977490,0.01068079,93626.0,93623.0,0.22430309]
[1765297977704,0.00099999,93640.0,93626.0,0.01068079]
[1765297977916,0.09596122,93664.0,93642.0,0.01067896]
[1765297977917,0.01067817,93649.0,93642.0,0.01067896]
[1765297978121,0.00999456,93656.0,93642.0,0.01067896]
[1765297978122,0.01067782,93652.0,93649.0,0.01067817]
[1765297978332,0.00161287,93657.0,93654.0,0.2242276]
[1765297978538,0.01067794,93651.0,93643.0,0.01067885]
[1765297978764,0.01067748,93655.0,93650.0,0.01067805]
[1765297978996,0.01067748,93655.0,93628.0,0.021596]
[1765297978997,0.00099999,93640.0,93639.0,0.01067931]
[1765297979203,0.002,93649.0,93646.0,0.01067851]
[1765297979412,0.01267817,93649.0,93642.0,0.01067896]
[1765297979632,0.002,93649.0,93646.0,0.01067851]
[1765297980035,0.00161287,93651.0,93650.0,0.21356113]
[1765297980466,0.00099999,93660.0,93652.0,0.22423256]
[1765297980668,0.00099999,93660.0,93654.0,0.21355201]
[1765297980877,0.00099999,93660.0,93652.0,0.22423256]
[1765297980878,0.21354114,93659.0,93652.0,0.01067782]
[1765297981076,0.00099999,93640.0,93625.0,0.02755754]
[1765297981292,0.01067874,93644.0,93640.0,0.01067919]
[1765297981293,0.01067885,93643.0,93640.0,0.01067919]
[1765297981491,0.01067885,93643.0,93634.0,0.21359704]
[1765297981492,0.01067953,93637.0,93629.0,0.01068045]
[1765297981839,0.01067988,93634.0,93631.0,0.01068022]
[1765297982053,0.00099999,93640.0,93631.0,0.01068022]
[1765297982054,0.01167918,93640.0,93632.0,0.0106801]
[1765297982263,0.01067999,93633.0,93628.0,0.22428984]
[1765297982413,0.01067942,93638.0,93634.0,0.01067988]
[1765297982651,0.01067942,93638.0,93635.0,0.01067976]
[1765297982974,0.01067942,93638.0,93633.0,0.22427831]
[1765297982975,0.00099999,93620.0,93610.0,0.21365238]
[1765297983172,0.21362437,93623.0,93617.0,0.21363641]
[1765297983482,0.03269911,93622.0,93618.0,0.0106817]
[1765297983680,0.02201786,93629.0,93628.0,0.21361131]
[1765297983863,0.61281049,93650.0,93610.0,0.61303658]
[1765297983864,0.02201786,93631.0,93610.0,0.61303658]
[1765297984059,0.01067953,93637.0,93610.0,0.61303658]
[1765297984060,0.02134676,93630.0,93627.0,0.01068067]
[1765297984323,0.02134676,93629.0,93626.0,0.01068079]
[1765297984523,0.00099999,93650.0,93638.0,0.01067942]
[1765297984817,0.00039347,93650.0,93649.0,0.22424158]
[1765297985561,0.00039347,93650.0,93649.0,0.24136158]
[1765297987018,0.00039347,93650.0,93649.0,0.22624158]
[1765297987019,0.02241133,93650.0,93649.0,0.22624158]
[1765297987258,0.00039347,93650.0,93649.0,0.22424158]
[1765297987640,0.00039347,93650.0,93649.0,0.22624158]
[1765297987839,0.00039347,93650.0,93649.0,0.22424158]
[1765297988239,0.00039347,93650.0,93649.0,0.22624158]
[1765297988651,0.00039347,93650.0,93649.0,0.51694158]
[1765297988904,0.00039347,93650.0,93649.0,0.53653758]
[1765297989215,0.00039347,93650.0,93649.0,0.53853758]
[1765297989545,0.00039347,93650.0,93649.0,0.54462483]
[1765297989751,0.00119999,93670.0,93649.0,0.50926341]
[1765297990119,0.00031795,93670.0,93669.0,0.21351781]
[1765297990247,0.00031795,93670.0,93669.0,0.25223381]
[1765297990695,0.00031795,93670.0,93669.0,0.23063781]
[1765297990931,0.00131795,93670.0,93669.0,0.23063781]
[1765297991152,0.00031795,93670.0,93669.0,0.23063781]
[1765297991511,0.00031795,93670.0,93669.0,0.23163781]
[1765297992012,0.00031795,93670.0,93669.0,0.23063781]
[1765297992381,0.00331795,93670.0,93669.0,0.23163781]
[1765297992964,0.00331795,93670.0,93669.0,0.21351781]
[1765297993177,0.00331795,93670.0,93669.0,0.21451781]
[1765297993378,0.00331795,93670.0,93669.0,0.21351781]
[1765297993557,0.00031795,93670.0,93669.0,0.21351781]
[1765297993757,0.00831795,93670.0,93669.0,0.21351781]
[1765297993988,0.00193082,93670.0,93669.0,0.001]
[1765297994158,0.02394868,93670.0,93669.0,0.001]
[1765297994359,0.00999456,93665.0,93664.0,0.01067646]
[1765297994568,0.00131795,93670.0,93669.0,0.21351781]
[1765297994718,0.01193082,93670.0,93669.0,0.21451781]
[1765297995155,0.00293082,93670.0,93669.0,0.21351781]
[1765297995359,0.00031795,93670.0,93669.0,0.21351781]
[1765297995531,0.00031795,93670.0,93667.0,0.22419757]
[1765297995734,0.00193082,93670.0,93667.0,0.22419757]
[1765297996182,0.01793082,93670.0,93669.0,0.001]
[1765297996512,0.01793082,93670.0,93655.0,0.22422676]
[1765297996513,0.0106768,93661.0,93655.0,0.22422676]
[1765297996686,0.01067646,93664.0,93659.0,0.01067703]
[1765297996890,0.01067646,93664.0,93657.0,0.21354517]
[1765297996891,0.01067668,93662.0,93658.0,0.01067714]
[1765297997090,0.02201786,93659.0,93658.0,0.01067714]
[1765297997320,0.2907,93669.0,93667.0,0.21352237]
[1765297997526,0.00331795,93670.0,93667.0,0.22419848]
[1765297998418,0.00331795,93670.0,93669.0,0.21351781]
[1765297998635,0.00031795,93670.0,93669.0,0.21933026]
[1765297999027,0.00031795,93670.0,93669.0,0.21351781]
[1765297999465,0.00031795,93670.0,93669.0,0.23511381]
[1765297999986,0.00031795,93670.0,93669.0,0.21351781]
[1765298000161,0.01131795,93670.0,93669.0,0.21351781]
[1765298000363,0.00331795,93670.0,93669.0,0.21351781]
[1765298000566,0.00331795,93670.0,93669.0,0.22351595]
[1765298000768,0.00031795,93670.0,93669.0,0.22351595]
[1765298000930,0.00331795,93670.0,93669.0,0.22351595]
[1765298001613,0.00931795,93670.0,93669.0,0.22351595]
[1765298002118,0.00031795,93670.0,93669.0,0.21351781]
[1765298002244,0.00631795,93670.0,93669.0,0.2398649]
[1765298002454,0.00031795,93670.0,93669.0,0.23511381]
[1765298002824,0.00631795,93670.0,93669.0,0.23511381]
[1765298002967,0.00631795,93670.0,93669.0,0.26268586]
[1765298003310,0.00331795,93670.0,93669.0,0.26268586]
[1765298003513,0.00931795,93670.0,93669.0,0.21327781]
[1765298003692,0.00631795,93670.0,93669.0,0.23039781]
[1765298004016,0.00931795,93670.0,93669.0,0.23039781]
[1765298004548,0.00031795,93670.0,93669.0,0.23039781]
[1765298004756,0.00631795,93670.0,93669.0,0.23039781]
[1765298004991,0.01031795,93670.0,93669.0,0.23039781]
[1765298005193,0.00431795,93670.0,93669.0,0.25199381]
[1765298005429,0.01131795,93670.0,93669.0,0.25199381]
[1765298005854,0.00431795,93670.0,93669.0,0.25199381]
[1765298006055,0.01031795,93670.0,93669.0,0.25199381]
[1765298006266,0.00631795,93670.0,93669.0,0.23039781]
[1765298006467,0.01031795,93670.0,93669.0,0.23039781]
[1765298007026,0.00631795,93670.0,93669.0,0.23039781]
[1765298007231,0.01093082,93670.0,93669.0,0.21327781]
[1765298007455,0.00931795,93670.0,93669.0,0.21327781]
[1765298007849,0.00031795,93670.0,93669.0,0.21327781]